bitfinex/quotes_ETHUSD_20250725
["timestamp","ask_amount","ask_price","bid_price","bid_amount"]
[1753402496897,0.1352,3688.4,3687.7,0.1352]
[1753402496898,2.71164379,3687.8,3687.7,0.1352]
[1753402497212,2.71164379,3687.8,3687.7,1.0347]
[1753402497362,6.99991795,3688.8,3687.8,0.55]
[1753402497695,2.7113651,3688.2,3687.9,0.19312]
[1753402498079,4.289,3689.1,3687.6,0.3465]
[1753402498080,2.71170252,3687.8,3687.6,0.3465]
[1753402498302,2.71155911,3688.0,3687.6,0.8965]
[1753402498512,2.71127619,3688.3,3687.9,0.1352]
[1753402498690,0.1352,3688.4,3687.9,0.1352]
[1753402498691,2.71136918,3688.2,3687.9,0.1352]
[1753402499004,2.71142883,3688.1,3687.9,0.8995]
[1753402499205,2.71142883,3688.1,3687.9,0.4465]
[1753402499392,2.71137541,3688.2,3688.0,0.1352]
[1753402499568,2.71142322,3688.1,3688.0,0.1352]
[1753402500508,0.4466,3688.6,3687.8,4.289]
[1753402500691,2.71134138,3688.3,3687.9,0.1352]
[1753402500893,3.15739803,3689.0,3687.8,1.56035]
[1753402500894,2.71157027,3687.9,3687.8,1.56035]
[1753402501095,2.71133024,3688.3,3687.9,0.55]
[1753402501293,2.71127619,3688.3,3688.2,0.1352]
[1753402501598,0.9177,3688.3,3687.7,4.839]
[1753402501797,2.71147123,3688.1,3688.0,0.1352]
[1753402501985,2.71142322,3688.1,3688.0,0.4465]
[1753402502182,2.71142322,3688.1,3688.0,0.1352]
[1753402502811,2.71142322,3688.1,3688.0,4.8707]
[1753402503167,2.71142322,3688.1,3688.0,4.4242]
[1753402503370,2.71171733,3687.7,3687.6,0.3465]
[1753402503703,0.1352,3688.3,3687.7,0.1352]
[1753402503903,2.71171733,3687.7,3687.6,4.7717]
[1753402504111,2.71171733,3687.7,3687.6,0.4817]
[1753402504305,2.71171733,3687.7,3687.6,4.7717]
[1753402504888,2.71171733,3687.7,3687.6,0.4817]
[1753402505280,1.48712421,3687.7,3686.9,0.001]
[1753402505502,2.71203346,3687.3,3687.0,0.136]
[1753402505700,2.7121586,3687.1,3687.0,0.136]
[1753402507514,2.71212184,3687.2,3687.0,0.136]
[1753402507711,2.71209796,3687.2,3687.0,0.136]
[1753402507909,2.7121586,3687.1,3687.0,0.136]
[1753402508410,2.71209481,3687.2,3687.0,4.426]
[1753402508710,0.1352,3687.6,3687.0,4.426]
[1753402508891,0.8243,3688.4,3687.0,4.426]
[1753402508892,2.7117174,3687.7,3687.1,0.55]
[1753402509092,0.1352,3687.9,3687.4,0.1352]
[1753402509312,2.71175501,3687.7,3687.5,4.29]
[1753402509718,2.71154605,3688.0,3687.6,0.3465]
[1753402510086,2.71157497,3687.9,3687.6,0.3465]
[1753402510700,2.71151264,3688.0,3687.6,0.3465]
[1753402510885,2.71160245,3687.9,3687.6,0.3465]
[1753402511081,0.9177,3688.9,3687.7,0.55]
[1753402511276,2.7110776,3688.6,3687.8,0.1352]
[1753402511475,0.9177,3688.9,3687.7,3.28883079]
[1753402511681,0.1352,3688.6,3688.1,0.1352]
[1753402511890,0.1352,3688.8,3688.3,0.3465]
[1753402512091,0.1352,3688.8,3688.3,0.4817]
[1753402512304,2.84613305,3688.8,3688.3,0.4817]
[1753402512519,1.2522,3689.2,3688.3,0.4817]
[1753402512695,2.71089483,3688.9,3688.5,0.1352]
[1753402513011,2.84588824,3689.1,3688.5,0.1352]
[1753402513216,2.7108892,3688.9,3688.5,0.1352]
[1753402513516,2.71098633,3688.7,3688.5,0.1352]
[1753402513683,2.7108852,3688.9,3688.5,0.1352]
[1753402514115,2.71092136,3688.8,3688.5,0.1352]
[1753402514817,0.9177,3688.7,3688.3,0.1352]
[1753402515018,2.73816405,3688.6,3688.3,0.1352]
[1753402515219,2.71118438,3688.5,3688.3,0.1352]
[1753402515717,2.71114781,3688.5,3688.3,0.1352]
[1753402515922,2.71106131,3688.6,3688.3,0.1352]
[1753402516118,0.1352,3688.8,3688.3,0.1352]
[1753402516346,2.71090078,3688.9,3688.3,0.89072]
[1753402516549,2.71090886,3688.8,3688.5,0.1352]
[1753402516731,2.71105568,3688.6,3688.5,0.1352]
[1753402517243,2.71112918,3688.5,3688.4,4.29]
[1753402517443,0.1352,3688.9,3688.4,4.29]
[1753402517648,2.71091295,3688.8,3688.4,4.29]
[1753402518150,0.1352,3688.9,3688.4,4.29]
[1753402518151,2.7109971,3688.7,3688.4,4.29]
[1753402518448,2.71092295,3688.8,3688.4,4.29]
[1753402518617,2.71092295,3688.8,3688.4,4.289]
[1753402519238,2.71098442,3688.7,3688.4,4.289]
[1753402519439,2.71098566,3688.7,3688.4,4.289]
[1753402519640,2.71091606,3688.8,3688.4,4.289]
[1753402520361,2.71099307,3688.7,3688.4,4.289]
[1753402520566,2.7109877,3688.7,3688.4,4.289]
[1753402520769,2.71093528,3688.8,3688.4,4.289]
[1753402521353,2.71093528,3688.8,3688.5,0.1352]
[1753402522143,2.71077627,3689.0,3688.5,0.1352]
[1753402522144,2.71086345,3688.9,3688.5,0.1352]
[1753402522357,2.71105568,3688.6,3688.5,0.1352]
[1753402522660,2.71149351,3688.1,3687.9,0.1352]
[1753402523382,2.71149674,3688.0,3687.9,0.1352]
[1753402523827,0.16228942,3688.4,3687.9,0.1352]
[1753402523828,2.73852498,3688.1,3687.9,0.1352]
[1753402524027,0.1352,3688.4,3687.9,0.1352]
[1753402524230,2.84642203,3688.4,3687.9,4.4242]
[1753402524441,1.0761,3688.4,3687.9,0.1352]
[1753402524676,2.71149674,3688.0,3687.9,0.1352]
[1753402524840,2.71162751,3687.9,3687.5,0.001]
[1753402525046,2.71162751,3687.9,3687.7,0.1352]
[1753402525830,2.71164379,3687.8,3687.7,0.1352]
[1753402526126,2.71159658,3687.9,3687.7,4.4242]
[1753402526331,2.71164379,3687.8,3687.7,4.289]
[1753402526739,0.96798942,3688.0,3687.5,0.001]
[1753402526943,3.18519891,3687.8,3687.7,4.289]
[1753402528634,3.18514379,3687.8,3687.7,4.289]
[1753402529243,3.65254379,3687.8,3687.5,0.001]
[1753402529456,2.71174049,3687.7,3687.5,0.001]
[1753402529664,2.71137312,3688.2,3687.6,0.3465]
[1753402529904,2.71155542,3688.0,3687.6,0.3465]
[1753402530073,2.71127619,3688.3,3687.6,0.3465]
[1753402530240,2.7113497,3688.2,3687.6,0.3465]
[1753402530447,2.71142966,3688.1,3687.6,0.3465]
[1753402531173,2.71136388,3688.2,3687.6,0.3465]
[1753402531378,2.71143389,3688.1,3687.6,0.3465]
[1753402531586,2.71165225,3687.8,3687.6,0.3465]
[1753402531880,2.71159124,3687.9,3687.6,0.3465]
[1753402532473,2.71159124,3687.9,3687.5,0.001]
[1753402532674,3.21224566,3687.8,3687.5,0.001]
[1753402532859,2.71179086,3687.6,3687.5,0.001]
[1753402533349,3.65263398,3687.7,3687.5,0.001]
[1753402533555,2.71157882,3687.9,3687.5,0.001]
[1753402533556,3.67978028,3687.6,3687.5,0.001]
[1753402534969,3.65269086,3687.6,3687.5,0.001]
[1753402535276,4.85597701,3687.6,3687.5,0.001]
[1753402536381,4.99117701,3687.6,3687.5,0.001]
[1753402537051,7.00179086,3687.6,3687.5,0.001]
[1753402537447,7.94269086,3687.6,3687.5,0.001]
[1753402537906,2.71223216,3687.0,3686.4,0.136]
[1753402538103,7.80323216,3687.0,3685.9,4.289]
[1753402538411,0.4735,3687.3,3686.1,3.26289325]
[1753402538713,0.136,3687.3,3686.8,0.136]
[1753402538857,0.02708942,3687.3,3686.6,0.3465]
[1753402539059,2.7121586,3687.1,3686.8,0.136]
[1753402539255,0.02708942,3687.0,3686.8,0.136]
[1753402539792,3.20672158,3687.0,3686.8,0.136]
[1753402539978,3.78913216,3687.0,3686.5,0.136]
[1753402540910,4.86825442,3687.0,3685.8,0.001]
[1753402541215,9.96164384,3687.0,3685.8,0.001]
[1753402541359,9.93455442,3687.0,3685.8,0.001]
[1753402542305,2.71304159,3685.9,3685.8,0.001]
[1753402542657,8.89289849,3685.9,3685.8,0.001]
[1753402542854,9.69929849,3685.9,3685.8,0.001]
[1753402544211,12.69929849,3685.9,3685.8,0.001]
[1753402544697,0.7665,3685.5,3684.2,0.136]
[1753402544856,3.0,3685.8,3683.6,0.004]
[1753402544857,0.7665,3685.3,3683.6,0.004]
[1753402545063,0.31744894,3685.2,3684.5,2.71405282]
[1753402545264,0.9409,3685.2,3683.7,0.93334661]
[1753402545499,4.295,3685.1,3684.1,2.71436714]
[1753402545796,2.71401288,3684.6,3683.8,0.55]
[1753402546101,0.02708942,3684.5,3683.8,0.55]
[1753402546299,0.4859,3685.1,3683.8,2.71456462]
[1753402546503,4.307,3685.0,3684.1,1.004]
[1753402546800,2.71377785,3684.9,3684.1,0.55]
[1753402547225,4.307,3685.0,3684.0,0.001]
[1753402547567,4.307,3685.0,3684.1,2.71435716]
[1753402547811,4.307,3685.0,3684.0,2.71542958]
[1753402548128,0.823,3686.3,3684.2,0.55]
[1753402548417,0.9484,3685.6,3684.6,2.71398838]
[1753402548569,4.317,3685.5,3684.7,0.55]
[1753402548767,4.317,3685.5,3685.2,0.55]
[1753402548971,4.318,3686.2,3685.3,0.4651]
[1753402549280,0.97548942,3686.1,3684.6,0.4915]
[1753402549603,2.71340991,3685.4,3684.6,3.4915]
[1753402549804,2.74059555,3685.3,3684.6,0.4915]
[1753402550003,2.71362937,3685.2,3684.6,0.4915]
[1753402550176,0.9484,3685.4,3684.6,0.4915]
[1753402550378,0.52954894,3685.3,3684.6,0.4915]
[1753402550585,0.9484,3685.4,3684.6,0.4915]
[1753402550782,3.6614673,3685.9,3684.7,0.55]
[1753402550982,5.141,3686.3,3685.3,2.71343421]
[1753402551379,5.141,3686.3,3684.9,3.26370662]
[1753402551583,0.97548942,3686.0,3684.9,0.55]
[1753402551782,2.71318881,3685.7,3684.9,0.55]
[1753402551979,2.71318881,3685.7,3684.8,0.55]
[1753402552298,2.71340396,3685.5,3684.7,3.55]
[1753402552492,2.71340396,3685.5,3684.7,6.26391799]
[1753402552493,0.02708942,3685.4,3684.7,6.26391799]
[1753402552685,3.17575164,3685.7,3684.9,3.26377763]
[1753402552879,2.74035887,3685.6,3684.8,0.55]
[1753402553098,2.74035887,3685.6,3684.9,3.0]
[1753402553301,2.71333722,3685.5,3684.7,0.55]
[1753402553473,2.7405156,3685.4,3684.7,0.55]
[1753402553682,0.4859,3685.3,3684.6,0.4915]
[1753402554006,2.71371067,3685.0,3684.6,0.4915]
[1753402554412,2.71355693,3685.2,3684.6,0.4915]
[1753402554710,0.136,3685.0,3684.6,0.4915]
[1753402554868,2.71322495,3685.7,3684.7,3.72902514]
[1753402555068,0.136,3685.6,3684.9,0.136]
[1753402555328,2.71357804,3685.2,3684.9,0.136]
[1753402555628,3.79802852,3685.2,3684.7,0.136]
[1753402555941,2.71398344,3684.7,3684.2,0.4915]
[1753402556095,2.84990848,3684.8,3684.3,0.136]
[1753402556420,1.0844,3684.6,3684.1,0.136]
[1753402556574,2.74116188,3684.5,3684.1,0.136]
[1753402556771,0.02708942,3684.5,3684.1,0.136]
[1753402557076,2.71408631,3684.5,3684.1,0.136]
[1753402557277,1.0844,3684.6,3684.1,0.136]
[1753402557711,2.71412417,3684.5,3684.1,0.136]
[1753402558034,1.0844,3684.6,3684.1,0.136]
[1753402558334,2.85029346,3684.2,3684.0,0.001]
[1753402559110,0.136,3684.2,3684.0,0.001]
[1753402560198,0.4625,3684.8,3684.0,0.001]
[1753402560398,1.02375706,3685.1,3684.0,0.001]
[1753402560399,1.02375706,3685.1,3684.2,0.55]
[1753402560598,1.02375706,3685.1,3684.9,2.71377535]
[1753402560800,1.02375706,3685.1,3684.7,2.8499223]
[1753402561000,1.02375706,3685.1,3684.7,0.136]
[1753402561513,2.71430392,3684.2,3683.6,0.4955]
[1753402561713,0.40743039,3684.2,3683.7,0.14]
[1753402562034,0.7645,3685.0,3683.7,0.004]
[1753402562250,0.136,3684.8,3684.4,2.71409621]
[1753402562398,0.136,3684.8,3684.3,0.55]
[1753402562595,1.02375706,3685.1,3684.7,2.71387594]
[1753402562890,1.02375706,3685.1,3684.7,3.31497594]
[1753402563104,1.02375706,3685.1,3684.7,0.136]
[1753402563278,1.02375706,3685.1,3684.8,0.55]
[1753402563614,1.02375706,3685.1,3685.0,3.3997042]
[1753402564115,1.02375706,3685.1,3685.0,0.686]
[1753402564303,1.02375706,3685.1,3685.0,3.3997042]
[1753402564503,1.02375706,3685.1,3685.0,7.34594124]
[1753402564714,1.02375706,3685.1,3685.0,7.8103042]
[1753402564877,0.136,3686.7,3686.0,0.55]
[1753402565099,0.136,3686.8,3686.3,0.136]
[1753402565298,0.002,3686.9,3686.2,0.55]
[1753402565836,0.002,3686.9,3686.2,3.26278687]
[1753402566043,0.002,3686.9,3686.1,0.55]
[1753402566199,0.002,3686.9,3686.1,3.26283379]
[1753402566831,0.9484,3686.8,3685.9,0.4915]
[1753402567138,2.71267894,3686.4,3685.8,0.55]
[1753402567539,2.71254193,3686.6,3685.9,2.71302252]
[1753402567730,2.71247481,3686.7,3685.9,3.6106436]
[1753402567911,2.71243736,3686.8,3686.2,0.55]
[1753402568111,2.71248057,3686.7,3686.0,3.26294943]
[1753402568313,2.71239452,3686.8,3686.2,0.55]
[1753402568512,0.002,3686.9,3686.1,0.55]
[1753402568742,2.71273065,3686.4,3685.7,0.55]
[1753402568928,0.02708942,3686.3,3685.7,0.55]
[1753402569129,2.71288541,3686.2,3685.6,0.55]
[1753402569354,2.71272381,3686.4,3685.6,0.55]
[1753402569529,0.002,3686.9,3686.1,0.55]
[1753402569530,0.4879,3686.9,3686.1,0.55]
[1753402569726,2.71242994,3686.8,3686.3,0.55]
[1753402569927,0.002,3686.9,3686.3,0.55]
[1753402569928,2.7125059,3686.7,3686.3,0.55]
[1753402570356,2.7143684,3686.9,3686.3,0.55]
[1753402570555,0.002,3686.9,3686.3,3.26273875]
[1753402570727,0.002,3686.9,3686.3,1.28862257]
[1753402571053,0.002,3686.9,3686.7,0.55]
[1753402571568,0.002,3686.9,3686.5,0.55]
[1753402571717,0.002,3686.9,3686.2,0.4915]
[1753402571925,2.71245287,3686.7,3686.3,0.55]
[1753402572135,2.73954229,3686.7,3686.3,0.55]
[1753402572331,2.71279357,3686.3,3685.8,0.4915]
[1753402572556,2.71274719,3686.3,3686.0,4.331]
[1753402572720,2.7129154,3686.1,3685.9,0.55]
[1753402573134,0.4859,3686.3,3685.5,4.8215]
[1753402573435,2.71268861,3686.4,3685.8,0.55]
[1753402573621,0.002,3686.4,3685.7,0.55]
[1753402573820,2.71296186,3686.1,3685.7,0.55]
[1753402574121,2.71275341,3686.3,3685.6,0.55]
[1753402574331,2.71282321,3686.2,3685.6,0.55]
[1753402574534,2.71290541,3686.1,3685.6,0.55]
[1753402574858,2.71305886,3685.9,3685.6,0.55]
[1753402575320,0.02708942,3685.8,3685.7,0.136]
[1753402575663,2.71296867,3686.0,3685.6,0.136]
[1753402576018,3.19276867,3686.0,3685.6,0.136]
[1753402576532,3.19276867,3686.0,3685.5,3.0]
[1753402576533,0.002,3686.4,3685.7,0.55]
[1753402576749,0.136,3686.3,3685.8,0.136]
[1753402577463,2.71282227,3686.2,3685.8,0.136]
[1753402577856,0.136,3686.3,3685.8,0.136]
[1753402578158,2.71304159,3685.9,3685.8,0.136]
[1753402578554,2.74013101,3685.9,3685.5,3.0]
[1753402578755,2.71298783,3686.0,3685.6,0.136]
[1753402578935,2.71311895,3685.8,3685.6,0.136]
[1753402579349,2.71318881,3685.7,3685.6,0.136]
[1753402580337,2.7135522,3685.3,3685.2,4.319]
[1753402580652,3.64312012,3685.3,3684.4,0.4915]
[1753402580853,0.136,3685.0,3684.5,0.136]
[1753402581056,2.71392514,3684.7,3684.3,0.136]
[1753402581251,2.71436714,3684.1,3684.0,0.001]
[1753402581768,3.64396714,3684.1,3684.0,1e-08]
[1753402583240,7.96696714,3684.1,3684.0,1e-08]
[1753402583436,2.71436714,3684.1,3684.0,1e-08]
[1753402583674,3.19416714,3684.1,3684.0,1e-08]
[1753402584264,4.70779583,3684.1,3684.0,1e-08]
[1753402584465,4.68070641,3684.1,3684.0,1e-08]
[1753402584659,7.03936714,3684.1,3684.0,1e-08]
[1753402584867,2.71436714,3684.1,3684.0,1e-08]
[1753402585679,3.64396714,3684.1,3684.0,1e-08]
[1753402586584,0.7624,3685.0,3684.0,0.55000001]
[1753402586964,2.71421471,3684.4,3684.0,1e-08]
[1753402587199,0.02708942,3684.3,3684.0,1e-08]
[1753402587367,3.67093119,3684.3,3684.0,1e-08]
[1753402587574,0.4798,3684.2,3684.0,1e-08]
[1753402587907,0.4498,3684.3,3684.0,1e-08]
[1753402588071,0.4798,3684.6,3684.2,2.71426865]
[1753402588404,0.277,3684.1,3684.0,3.26444083]
[1753402588571,0.277,3684.1,3684.0,4.30355287]
[1753402588969,0.277,3684.1,3684.0,3.86545287]
[1753402589171,0.277,3684.1,3684.0,4.30355287]
[1753402589606,0.277,3684.1,3684.0,1.15101205]
[1753402589787,0.277,3684.1,3684.0,0.55000001]
[1753402590120,0.277,3684.1,3684.0,3.26444083]
[1753402590271,0.277,3684.1,3684.0,0.55000001]
[1753402590467,0.277,3684.1,3684.0,1.04150001]
[1753402590972,0.277,3684.1,3684.0,0.55000001]
[1753402591316,2.99136714,3684.1,3684.0,1e-08]
[1753402591615,1.50842985,3684.1,3684.0,1e-08]
[1753402591809,1.2066,3684.1,3684.0,1e-08]
[1753402592123,0.277,3684.1,3684.0,1e-08]
[1753402592290,2.99136714,3684.1,3684.0,1e-08]
[1753402592490,0.277,3684.1,3684.0,1e-08]
[1753402593691,0.277,3684.1,3684.0,3.75594083]
[1753402594011,0.277,3684.1,3684.0,12.64603236]
[1753402594173,0.277,3684.1,3684.0,12.61888796]
[1753402596100,1.02708945,3685.8,3684.4,3.55]
[1753402596298,2.71327179,3685.6,3684.9,2.71372167]
[1753402596500,0.98161311,3685.7,3684.7,0.55]
[1753402596699,0.136,3685.6,3685.0,0.136]
[1753402596900,0.136,3685.6,3685.0,2.84968744]
[1753402597288,1.02708945,3685.8,3685.3,2.71343351]
[1753402597491,1.02708945,3685.8,3685.4,2.71338285]
[1753402597693,1.02708945,3685.8,3685.3,2.84947102]
[1753402597890,1.02708945,3685.8,3685.6,2.71325132]
[1753402598091,1.02708945,3685.8,3685.5,0.136]
[1753402599321,1.02708945,3685.8,3685.5,2.84933423]
[1753402599687,1.02708945,3685.8,3685.5,4.458]
[1753402600027,2.71319353,3685.7,3685.5,4.458]
[1753402600383,3.74022465,3685.8,3685.5,4.458]
[1753402601009,2.71320443,3685.7,3685.5,4.458]
[1753402601492,1.02708945,3685.8,3685.5,4.458]
[1753402601725,1.02708945,3685.8,3685.6,0.55]
[1753402601889,1.02708945,3685.8,3685.7,0.136]
[1753402602095,3.74020464,3685.8,3685.7,0.136]
[1753402602323,2.71326242,3685.6,3685.5,4.458]
[1753402602625,2.74029599,3685.7,3685.5,4.448]
[1753402602985,2.71326242,3685.6,3685.5,4.448]
[1753402603521,2.74030369,3685.7,3685.5,4.448]
[1753402603696,2.71321427,3685.7,3685.5,4.448]
[1753402604019,2.71333604,3685.5,3684.2,3.45850174]
[1753402604194,0.136,3685.1,3684.6,0.136]
[1753402604394,2.71368485,3685.1,3684.8,0.136]
[1753402604584,2.71372198,3685.0,3684.8,0.136]
[1753402605826,2.71364895,3685.1,3684.8,0.136]
[1753402605990,2.71371897,3685.0,3684.8,0.136]
[1753402606325,2.71377785,3684.9,3684.8,0.136]
[1753402606645,2.71392514,3684.7,3684.6,0.136]
[1753402606788,2.71425464,3684.3,3684.1,4.448]
[1753402607222,0.9399,3684.6,3684.1,4.448]
[1753402607427,2.71421552,3684.4,3684.1,4.448]
[1753402607796,2.71422871,3684.3,3684.1,4.448]
[1753402608295,2.71429346,3684.2,3684.1,4.446]
[1753402608713,3.16829346,3684.2,3684.1,0.136]
[1753402609629,0.02708942,3684.3,3684.1,0.136]
[1753402609806,2.71414612,3684.4,3684.1,0.136]
[1753402610004,0.454,3684.6,3684.1,0.136]
[1753402610315,0.96698942,3684.5,3684.1,0.136]
[1753402610527,2.71429346,3684.2,3684.1,0.136]
[1753402611710,0.136,3684.7,3684.1,0.136]
[1753402611907,2.71393834,3684.7,3684.2,1.0415]
[1753402612106,2.84975132,3685.0,3684.4,0.136]
[1753402612442,0.136,3685.5,3685.0,0.4915]
[1753402612646,2.71331178,3685.6,3685.3,0.136]
[1753402612791,2.71519684,3685.7,3685.3,0.136]
[1753402612990,0.002,3685.7,3685.4,0.55]
[1753402613236,2.71523152,3685.7,3685.5,0.136]
[1753402613445,2.71326242,3685.6,3685.5,0.136]
[1753402613935,3.84280792,3685.6,3685.5,0.136]
[1753402614109,2.71340967,3685.4,3684.8,4.308]
[1753402614309,2.71355693,3685.2,3684.3,3.0]
[1753402614512,2.71355693,3685.2,3684.0,0.49150001]
[1753402614513,2.71432674,3684.2,3684.0,0.49150001]
[1753402614735,3.1680704,3684.6,3684.2,0.136]
[1753402615056,2.71422792,3684.3,3684.1,0.136]
[1753402615205,2.71422981,3684.3,3684.1,4.444]
[1753402615405,2.71429346,3684.2,3684.1,4.444]
[1753402615613,2.71429346,3684.2,3684.1,4.994]
[1753402615796,2.71429346,3684.2,3684.1,4.993]
[1753402616195,2.71429346,3684.2,3684.1,0.136]
[1753402616428,2.71436714,3684.1,3684.0,1e-08]
[1753402616631,3.65426714,3684.1,3684.0,1e-08]
[1753402616837,2.71436714,3684.1,3684.0,1e-08]
[1753402620762,0.7585,3684.7,3684.0,1e-08]
[1753402620919,0.8174,3685.5,3684.4,1.0415]
[1753402621124,0.002,3685.6,3684.9,0.55]
[1753402621342,0.002,3685.6,3685.1,4.0415]
[1753402621544,0.002,3685.6,3685.5,0.55]
[1753402621743,0.002,3685.6,3685.5,4.853]
[1753402621944,0.002,3685.6,3685.5,10.56633604]
[1753402622242,0.002,3685.9,3685.5,10.56633604]
[1753402622243,0.002,3685.9,3685.8,6.26311519]
[1753402622444,0.002,3686.0,3685.9,6.26304159]
[1753402622652,0.136,3687.1,3686.3,3.26274719]
[1753402622853,0.57630149,3687.3,3686.3,11.08637466]
[1753402623053,2.84715738,3687.4,3686.3,11.19524719]
[1753402623266,2.71202116,3687.3,3686.3,13.49265591]
[1753402623440,0.5892,3687.4,3686.3,5.56830872]
[1753402623639,0.454,3687.0,3686.3,4.44]
[1753402623955,0.002,3687.1,3686.3,5.8966]
[1753402624479,2.71251063,3686.7,3686.3,0.136]
[1753402624682,2.71251063,3686.7,3686.3,4.44]
[1753402624897,0.4879,3686.9,3686.3,4.44]
[1753402624898,0.002,3686.9,3686.3,4.99]
[1753402625035,0.002,3686.9,3686.3,9.70677123]
[1753402625230,0.002,3686.9,3686.3,13.17114376]
[1753402626781,0.002,3686.9,3686.8,2.71237929]
[1753402627073,0.002,3686.9,3686.8,11.22300308]
[1753402627387,0.002,3686.9,3686.8,26.28756093]
[1753402627733,0.002,3688.6,3688.5,2.71112918]
[1753402627969,0.002,3688.6,3688.5,7.56612918]
[1753402628143,0.002,3688.6,3688.5,11.16522918]
[1753402628467,0.002,3688.6,3688.5,27.21121618]
[1753402628675,0.002,3688.6,3688.5,25.97252694]
[1753402628836,0.002,3688.6,3688.5,9.86682094]
[1753402629037,0.002,3688.6,3688.5,13.54061118]
[1753402629236,0.002,3688.6,3688.5,13.56503518]
[1753402629440,0.002,3688.6,3688.5,32.84952118]
[1753402629673,0.002,3688.6,3688.5,6.26112918]
[1753402629838,0.002,3688.6,3688.5,7.855]
[1753402630253,0.002,3688.6,3688.5,7.309]
[1753402631443,0.002,3688.6,3688.5,8.5899]
[1753402631645,0.002,3688.6,3688.5,11.76492918]
[1753402631842,0.002,3688.6,3688.5,12.20762918]
[1753402632038,0.002,3688.6,3688.5,21.00621018]
[1753402632337,0.002,3688.6,3688.5,13.01658818]
[1753402632587,0.002,3688.6,3688.5,8.3505]
[1753402632744,0.002,3688.6,3688.5,6.75262918]
[1753402633083,0.002,3688.6,3688.5,11.06162918]
[1753402633538,0.002,3688.6,3688.5,11.96822918]
[1753402634175,0.002,3688.6,3688.5,11.52552918]
[1753402634481,0.002,3688.6,3688.5,11.06262918]
[1753402634652,0.002,3688.6,3688.5,11.96922918]
[1753402634981,0.002,3688.6,3688.5,20.12345418]
[1753402635180,0.002,3689.3,3689.2,3.26061476]
[1753402635485,0.002,3689.3,3689.2,10.57261476]
[1753402635782,0.002,3689.3,3689.2,16.12725693]
[1753402635984,0.002,3689.3,3689.2,26.11916493]
[1753402636185,0.002,3689.3,3689.2,17.63934293]
[1753402636389,0.002,3689.3,3689.2,12.39144693]
[1753402636894,0.002,3689.3,3689.2,12.39044693]
[1753402637194,0.002,3689.3,3689.2,7.311]
[1753402637495,0.002,3689.3,3688.8,0.4915]
[1753402637658,0.002,3689.3,3688.4,2.71118232]
[1753402637859,0.8322,3689.1,3688.1,4.44165981]
[1753402638059,0.8322,3689.1,3688.3,3.0]
[1753402638060,1.3123,3689.1,3688.3,3.0]
[1753402638259,1.3123,3689.1,3688.5,3.0]
[1753402638476,3.19091425,3689.0,3688.9,0.1352]
[1753402638675,3.62326172,3689.0,3688.9,0.1352]
[1753402638875,0.93958942,3689.0,3688.1,4.44165981]
[1753402639111,0.1352,3689.0,3688.5,0.1352]
[1753402639255,3.62333894,3688.9,3688.6,4.311]
[1753402639591,2.71098218,3688.7,3688.6,4.311]
[1753402640129,3.62348767,3688.7,3688.6,4.31]
[1753402640290,2.71112918,3688.5,3688.4,0.1352]
[1753402640600,3.5435497,3688.2,3688.1,4.44165981]
[1753402640811,4.4560497,3688.2,3688.1,4.44165981]
[1753402640954,2.7118644,3687.5,3687.4,4.312]
[1753402641157,3.6243644,3687.5,3687.4,4.312]
[1753402641474,0.9125,3687.5,3687.4,4.312]
[1753402641679,0.4801,3687.8,3687.4,4.312]
[1753402641876,0.1352,3688.1,3687.6,0.1352]
[1753402642191,3.19160217,3688.0,3687.7,4.314]
[1753402642358,2.71150217,3688.0,3687.7,4.314]
[1753402642553,0.8322,3688.2,3687.7,4.314]
[1753402642881,0.4801,3688.2,3688.0,0.1352]
[1753402643188,0.4801,3688.2,3688.0,4.4482]
[1753402644219,0.4801,3688.8,3688.1,0.55]
[1753402644708,0.1352,3689.0,3688.5,0.1352]
[1753402644913,0.1352,3689.0,3688.6,4.312]
[1753402644914,3.62333776,3688.9,3688.6,4.312]
[1753402645135,0.9125,3688.8,3688.6,4.312]
[1753402645279,0.4801,3688.8,3688.6,4.312]
[1753402645483,0.4801,3688.8,3688.7,0.1352]
[1753402646318,0.9125,3688.8,3688.7,4.31]
[1753402646467,3.62340869,3688.8,3688.7,4.31]
[1753402646669,0.9125,3688.8,3688.5,0.1352]
[1753402646902,3.75871876,3688.7,3688.5,4.307]
[1753402647124,0.9125,3688.6,3688.5,4.307]
[1753402647402,0.1352,3688.8,3688.5,4.307]
[1753402647644,0.4801,3688.7,3688.5,4.4422]
[1753402648780,0.4801,3688.6,3688.5,4.4422]
[1753402649205,0.4324,3688.8,3688.5,4.4422]
[1753402649382,0.1352,3689.0,3688.5,4.4422]
[1753402649589,0.4801,3688.9,3688.7,0.1352]
[1753402650287,0.751,3689.1,3688.8,4.304]
[1753402650498,2.71066861,3689.2,3688.8,4.304]
[1753402650836,0.1372,3689.3,3687.8,0.4915]
[1753402650837,2.71076172,3689.0,3687.8,0.4915]
[1753402651011,2.71117767,3688.5,3688.3,0.1352]
[1753402651415,3.62370268,3688.4,3688.3,0.1352]
[1753402651712,0.9125,3688.4,3688.3,4.4382]
[1753402652091,0.9125,3688.4,3688.3,4.303]
[1753402652297,2.71120268,3688.4,3688.3,4.303]
[1753402652594,0.9125,3688.4,3688.3,4.303]
[1753402652811,0.1352,3688.5,3688.3,4.303]
[1753402652986,0.4801,3689.0,3688.4,3.69145389]
[1753402653187,0.7949,3689.2,3688.7,0.1352]